bitfinex/quotes_SOLUSD_20240813
["timestamp","ask_amount","ask_price","bid_price","bid_amount"]
[1723511256032,39.22,146.06,145.99,5.4798]
[1723511256231,5.4784,146.03,145.97,19.1809]
[1723511256550,39.22,146.0,145.93,13.7043]
[1723511256842,1.71295341,145.99,145.9,22.8538]
[1723511257045,44.6998,146.0,145.93,5.482]
[1723511257221,44.6998,146.0,145.9,22.8538]
[1723511257222,39.22,146.0,145.95,5.4813]
[1723511257425,39.22,146.0,145.94,19.1859]
[1723511257624,39.22,146.0,145.94,13.7042]
[1723511257824,50.4798,145.99,145.94,13.7042]
[1723511258254,45.0,145.99,145.94,19.1858]
[1723511258416,45.0,145.99,145.95,5.4813]
[1723511258612,45.0,145.99,145.91,13.707]
[1723511258818,45.0,145.99,145.93,5.4819]
[1723511259052,45.0,145.99,145.95,13.7033]
[1723511259347,39.22,146.0,145.95,13.7033]
[1723511259549,84.22,145.99,145.92,13.706]
[1723511259738,89.6998,145.99,145.92,13.706]
[1723511259916,89.6998,145.99,145.93,5.482]
[1723511260119,39.22,145.99,145.95,13.7032]
[1723511260319,39.22,146.02,145.95,13.7032]
[1723511260628,39.22,146.02,145.98,5.4801]
[1723511261016,39.22,146.05,146.0,13.6982]
[1723511261552,44.6967,146.08,146.0,13.6982]
[1723511261852,39.22,146.08,146.04,5.4778]
[1723511262420,39.22,146.05,146.0,19.1779]
[1723511262633,5.4791,146.01,145.95,5.4813]
[1723511262924,39.22,145.99,145.94,15.0105]
[1723511263122,39.22,145.99,145.93,13.7045]
[1723511263123,7.19308866,145.98,145.93,13.7045]
[1723511263746,5.4806,145.97,145.91,5.4827]
[1723511263952,5.4806,145.97,145.92,5.4823]
[1723511264162,39.22,145.96,145.91,5.4827]
[1723511264322,1.71333758,145.95,145.9,19.1909]
[1723511264520,7.19476385,145.95,145.9,13.7078]
[1723511265052,7.19476385,145.95,145.9,19.1908]
[1723511265251,1.71346385,145.95,145.91,5.4827]
[1723511265455,5.4814,145.95,145.9,19.1909]
[1723511265631,39.22,145.96,145.9,13.7078]
[1723511265954,47.42,145.95,145.9,13.7078]
[1723511266258,5.482,145.94,145.88,5.4835]
[1723511266438,5.482,145.94,145.89,5.4835]
[1723511266755,52.9013,145.95,145.9,5.4831]
[1723511266921,47.42,145.95,145.93,5.4819]
[1723511267359,47.42,145.95,145.92,5.4824]
[1723511267723,47.42,145.95,145.91,13.7069]
[1723511267937,1.71330355,145.94,145.91,13.7069]
[1723511268255,5.4824,145.93,145.87,19.1944]
[1723511268423,1.7137335,145.92,145.87,19.1944]
[1723511268628,20.0,145.94,145.87,19.1944]
[1723511269033,5.4821,145.93,145.87,19.1944]
[1723511269237,47.42,145.95,145.89,13.7082]
[1723511269458,52.9013,145.95,145.89,13.7082]
[1723511269955,5.4818,145.94,145.89,13.7082]
[1723511270251,47.42,145.95,145.89,13.7082]
[1723511270429,47.42,145.95,145.91,5.4826]
[1723511270850,5.4806,145.97,145.92,5.4823]
[1723511271046,5.481,145.96,145.9,5.4828]
[1723511271354,5.4817,145.94,145.89,19.1916]
[1723511271871,47.42,145.92,145.86,13.7116]
[1723511272650,49.1339371,145.92,145.86,19.1961]
[1723511272851,49.1339371,145.92,145.87,5.4842]
[1723511273061,47.42,145.95,145.88,13.7092]
[1723511273867,5.4824,145.93,145.88,13.7092]
[1723511274050,47.42,145.95,145.88,13.7092]
[1723511274544,5.4824,145.92,145.88,13.7092]
[1723511275239,5.4821,145.93,145.88,19.1928]
[1723511275666,47.42,145.95,145.88,13.7092]
[1723511275871,5.4817,145.94,145.89,5.4834]
[1723511276047,5.4817,145.94,145.9,5.4831]
[1723511276450,47.42,145.95,145.9,13.7074]
[1723511276745,47.42,145.98,145.92,13.7053]
[1723511276946,47.42,145.98,145.95,5.4812]
[1723511277558,47.42,145.98,145.96,5.4808]
[1723511277763,47.42,146.01,145.97,5.4805]
[1723511278171,1.71273576,146.0,145.93,29.7544]
[1723511278352,47.42,145.98,145.93,16.0493]
[1723511278554,47.42,145.98,145.91,11.6171]
[1723511278854,47.42,145.98,145.91,6.1344]
[1723511279064,47.42,145.98,145.94,5.4816]
[1723511279843,52.9002,145.98,145.93,5.482]
[1723511280043,47.42,145.98,145.93,5.482]
[1723511280280,47.42,146.02,145.94,13.7037]
[1723511280442,47.42,146.02,145.98,5.4801]
[1723511280642,52.8975,146.05,146.0,5.4792]
[1723511280948,47.42,146.02,145.91,6.1344]
[1723511281282,47.42,145.99,145.93,13.7049]
[1723511281481,5.4805,145.97,145.93,19.1869]
[1723511281684,47.42,146.02,145.91,6.1344]
[1723511282065,47.42,146.02,145.97,13.7008]
[1723511282265,52.8976,146.05,146.0,5.4792]
[1723511282955,5.4787,146.02,145.96,13.7019]
[1723511283360,5.4787,146.02,145.97,5.4802]
[1723511283768,5.4787,146.02,145.96,13.7019]
[1723511283769,5.4792,146.01,145.96,19.1828]
[1723511283958,5.4791,146.01,145.96,19.1828]
[1723511284158,5.481,145.96,145.92,13.7056]
[1723511284480,5.481,145.96,145.9,5.4829]
[1723511284481,5.4813,145.95,145.9,5.4829]
[1723511284649,5.4813,145.95,145.9,5.4831]
[1723511284853,5.4817,145.94,145.89,35.241]
[1723511285160,47.42,145.96,145.91,13.7066]
[1723511285374,47.42,145.96,145.94,5.4816]
[1723511285575,47.42,145.96,145.91,13.7066]
[1723511285751,47.42,145.96,145.9,5.4831]
[1723511285948,47.42,145.96,145.91,5.4827]
[1723511286151,47.42,145.96,145.92,5.4822]
[1723511286683,52.901,145.96,145.9,13.7075]
[1723511286887,47.42,145.96,145.92,13.7057]
[1723511287182,6.4925,145.99,145.89,27.4174]
[1723511287183,47.42,145.99,145.95,5.4812]
[1723511287386,52.8998,145.99,145.94,19.1853]
[1723511287896,39.5,146.0,145.96,5.4809]
[1723511288192,39.5,146.0,145.94,13.7037]
[1723511288688,39.5,146.0,145.97,5.4805]
[1723511289057,39.5,146.0,145.96,13.7019]
[1723511289058,39.5,146.0,145.96,19.1827]
[1723511289277,9.12077683,146.04,145.98,13.6997]
[1723511289278,39.5,146.03,145.98,13.6997]
[1723511289479,39.5,146.03,145.93,15.2067]
[1723511290009,39.5,146.03,145.98,13.6999]
[1723511290281,39.5,146.03,146.0,5.4792]
[1723511290466,39.5,146.03,146.01,5.479]
[1723511290657,5.4776,146.05,146.0,19.1774]
[1723511290884,39.5,146.03,145.96,20.0889]
[1723511291456,5.4788,146.02,145.97,5.4805]
[1723511292193,39.5,146.03,145.96,25.5697]
[1723511292489,39.5,146.0,145.98,5.48]
[1723511292699,39.5,146.0,145.93,56.3218]
[1723511292866,39.5,146.0,145.94,5.4816]
[1723511293385,1.71283217,145.99,145.94,5.4816]
[1723511293560,5.4802,145.98,145.93,34.3934]
[1723511293758,5.4802,145.98,145.94,5.4816]
[1723511293954,39.5,146.0,145.97,5.4805]
[1723511294277,5.4801,145.99,145.95,13.7026]
[1723511294478,1.71285898,146.01,145.94,5.4814]
[1723511294677,5.4802,145.98,145.93,20.6886]
[1723511295196,39.5,146.02,145.94,13.7038]
[1723511295393,39.5,146.02,145.93,42.6161]
[1723511295586,44.9787,146.02,145.97,19.1818]
[1723511295789,5.4791,146.01,145.97,19.1818]
[1723511295992,39.5,146.02,145.98,5.4798]
[1723511296288,44.9787,146.02,145.98,5.4798]
[1723511296488,39.5,146.02,145.94,13.7037]
[1723511296704,41.2128449,146.02,145.93,15.2067]
[1723511296902,5.4816,145.95,145.91,13.7069]
[1723511297277,5.481,145.96,145.91,19.1896]
[1723511297599,39.5,145.98,145.94,5.4815]
[1723511299197,39.5,145.98,145.93,13.7048]
[1723511299399,39.5,146.02,145.96,5.4806]
[1723511299611,5.4791,146.01,145.97,5.4804]
[1723511300088,44.9788,146.02,145.98,5.4801]
[1723511300677,44.9788,146.02,145.97,19.1816]
[1723511301099,5.4794,146.0,145.97,13.7011]
[1723511301304,5.4794,146.0,145.95,5.481]
[1723511301509,44.979,146.02,145.97,5.4805]
[1723511301686,39.5,146.02,145.92,27.4104]
[1723511301877,39.5,146.05,146.0,13.6981]
[1723511302078,5.4779,146.04,146.0,19.1774]
[1723511302503,5.4779,146.04,146.0,13.6981]
[1723511303020,44.9776,146.05,146.01,5.479]
[1723511303174,5.4776,146.05,146.01,5.479]
[1723511303509,16.28012986,146.08,145.99,15.0468]
[1723511303510,5.4783,146.03,145.99,15.0468]
[1723511303810,5.4787,146.02,145.97,19.1813]
[1723511303986,5.4788,146.02,145.97,19.1813]
[1723511304191,5.4788,146.02,145.98,5.4801]
[1723511304373,39.5,146.06,146.02,5.4787]
[1723511305111,44.9773,146.06,146.01,19.1761]
[1723511305495,39.5,146.06,146.02,5.4786]
[1723511305690,39.5,146.06,146.03,5.478]
[1723511305885,8.06532986,146.08,146.03,5.478]
[1723511306081,2.58882986,146.08,145.96,33.6986]
[1723511306405,5.4768,146.08,146.03,19.1737]
[1723511306621,39.5,146.09,146.03,13.6955]
[1723511306774,5.4769,146.07,146.03,13.6955]
[1723511307174,39.5,146.09,146.03,13.6955]
[1723511307377,39.5,146.09,146.05,13.6934]
[1723511307606,39.5,146.09,146.06,5.4771]
[1723511307809,39.5,146.12,146.07,13.6913]
[1723511308010,44.9738,146.15,146.1,5.4756]
[1723511308319,5.4757,146.1,146.06,13.693]
[1723511308479,5.4761,146.09,146.03,15.8218]
[1723511308801,5.4761,146.09,146.04,5.4776]
[1723511309012,5.4757,146.1,146.05,5.4775]
[1723511309347,39.5,146.12,146.07,5.4768]
[1723511310201,39.5,146.16,146.04,27.3895]
[1723511310406,39.5,146.16,146.11,5.4752]
[1723511310407,44.9737,146.16,146.11,5.4752]
[1723511310720,44.9737,146.16,146.04,27.3895]
[1723511310721,5.4742,146.14,146.1,13.6887]
[1723511310908,46.68570167,146.13,146.08,5.4763]
[1723511311119,44.9746,146.13,146.08,5.4763]
[1723511311305,44.9746,146.13,146.09,5.4759]
[1723511311506,39.5,146.13,146.09,5.4759]
[1723511311713,39.5,146.13,146.07,13.6916]
[1723511311714,39.5,146.13,146.08,5.4764]
[1723511311925,39.5,146.1,146.04,19.1721]
[1723511312134,39.5,146.1,146.06,13.6924]
[1723511312343,39.5,146.13,146.08,13.6905]
[1723511312506,5.4739,146.15,146.1,5.4756]
[1723511312933,39.5,146.16,146.11,5.4752]
[1723511313106,39.5,146.16,146.12,5.4749]
[1723511313307,5.4729,146.18,146.14,5.4741]
[1723511313508,44.9724,146.19,146.14,5.4741]
[1723511313730,5.4728,146.18,146.13,5.4744]
[1723511314214,8.07346292,146.21,146.16,5.4731]
[1723511314435,5.472,146.2,146.15,5.4737]
[1723511314745,39.5,146.2,146.14,19.159]
[1723511314917,5.4728,146.18,146.14,13.6851]
[1723511315112,5.4724,146.19,146.14,19.1592]
[1723511315442,44.972,146.2,146.15,5.4736]
[1723511316525,2.66783359,146.23,146.16,13.6831]
[1723511316526,5.4714,146.22,146.16,13.6831]
[1723511316727,5.4714,146.22,146.17,5.4729]
[1723511317630,39.5,146.23,146.18,13.6813]
[1723511317823,39.5,146.23,146.2,5.4719]
[1723511318021,5.4703,146.25,146.19,5.4719]
[1723511318346,5.4711,146.23,146.18,19.1539]
[1723511318555,1.7099644,146.22,146.18,19.1539]
[1723511318714,39.5,146.26,146.18,13.6813]
[1723511318920,39.5,146.26,146.22,5.4711]
[1723511319115,39.5,146.26,146.23,5.4707]
[1723511319624,5.469,146.28,146.23,5.4707]
[1723511319822,44.9686,146.29,146.24,5.4704]
[1723511320218,39.5,146.29,146.22,13.6773]
[1723511320422,5.4715,146.22,146.17,12.0759]
[1723511320646,5.4713,146.22,146.17,12.0756]
[1723511320946,39.5,146.23,146.16,15.4861]
[1723511321119,5.4727,146.18,146.13,11.6992]
[1723511321520,5.4731,146.17,146.13,11.6992]
[1723511321958,39.5,146.2,146.14,13.6848]
[1723511322164,39.5,146.23,146.16,5.4732]
[1723511322328,45.0,146.22,146.16,5.4732]
[1723511322524,39.5,146.23,146.16,13.6831]
[1723511323035,39.5,146.23,146.18,13.681]
[1723511323253,39.5,146.23,146.21,5.4714]
[1723511323456,30.0,146.22,146.21,5.4714]
[1723511323748,5.4698,146.26,146.21,5.4714]
[1723511323954,5.47,146.25,146.2,19.1509]
[1723511324365,52.90839982,146.3,146.22,13.6774]
[1723511324579,5.4686,146.29,146.22,13.6774]
[1723511324861,46.56839982,146.3,146.24,5.4703]
[1723511325030,1.70943609,146.29,146.22,19.1485]
[1723511325231,66.56839982,146.3,146.22,19.1485]
[1723511325455,44.9693,146.27,146.22,19.1485]
[1723511325668,39.5,146.27,146.2,15.7525]
[1723511325869,39.5,146.24,146.17,6.4579]
[1723511326157,39.5,146.24,146.2,5.4716]
[1723511326543,39.5,146.24,146.21,5.4715]
[1723511326742,39.5,146.24,146.2,5.4719]
[1723511327338,39.5,146.24,146.21,5.4715]
[1723511328362,39.5,146.24,146.17,20.1401]
[1723511328549,13.6741,146.27,146.16,15.7525]
[1723511328550,39.5,146.22,146.16,15.7525]
[1723511328736,39.5,146.22,146.17,13.6819]
[1723511328938,39.5,146.25,146.21,5.4714]
[1723511329355,39.5,146.25,146.21,13.6783]
[1723511329546,39.5,146.25,146.19,5.4722]
[1723511329745,39.5,146.25,146.16,15.7525]
[1723511329746,39.5,146.22,146.16,15.7525]
[1723511329944,44.9712,146.22,146.16,15.7525]
[1723511330467,5.4716,146.21,146.16,15.7525]
[1723511330640,39.5,146.22,146.13,6.2211]
[1723511330641,39.5,146.2,146.13,6.2211]
[1723511330843,39.5,146.2,146.12,29.7146]
[1723511330844,5.4733,146.17,146.12,35.1892]
[1723511331152,39.5,146.2,146.14,5.4741]
[1723511331462,46.023,146.22,146.14,13.6846]
[1723511331676,45.0,146.21,146.16,13.6831]
[1723511332040,5.472,146.2,146.16,13.6831]
[1723511332352,50.4716,146.21,146.16,19.1564]
[1723511333250,44.9712,146.22,146.17,5.4728]
[1723511333461,39.5,146.22,146.13,13.6861]
[1723511333642,61.21010754,146.22,146.13,13.6861]
[1723511333962,5.4726,146.19,146.13,13.6861]
[1723511334174,5.4726,146.19,146.15,5.4737]
[1723511334479,42.1860736,146.23,146.15,13.6839]
[1723511334641,39.5,146.23,146.15,13.6839]
[1723511335076,39.5,146.23,146.17,5.4729]
[1723511335364,1.96125503,146.22,146.12,29.7151]
[1723511335602,39.5,146.2,146.13,5.4745]
[1723511335760,5.4728,146.18,146.14,5.474]
[1723511335949,5.4724,146.19,146.14,5.474]
[1723511338470,39.5,146.2,146.13,5.4745]
[1723511338670,5.4735,146.16,146.12,5.4748]
[1723511338858,39.5,146.17,146.12,5.4748]
[1723511339261,39.5,146.17,146.14,5.4739]
[1723511339671,44.9723,146.19,146.15,5.4737]
[1723511340177,44.9723,146.19,146.14,5.4741]
[1723511340876,44.9716,146.21,146.16,5.4734]
[1723511341196,39.5,146.24,146.14,27.3706]
[1723511341378,39.5,146.24,146.2,5.4718]
[1723511341685,5.4724,146.19,146.11,22.2089]
[1723511341858,5.4723,146.19,146.14,13.6849]
[1723511342069,44.9729,146.18,146.14,13.6849]
[1723511342379,44.9729,146.18,146.07,22.2089]
[1723511342380,5.4747,146.13,146.07,22.2089]
[1723511342683,44.9729,146.18,146.13,5.4743]
[1723511342984,39.5,146.18,146.1,27.3782]
[1723511343348,27.06732201,146.24,146.17,5.4729]
[1723511343349,44.9716,146.21,146.17,5.4729]
[1723511343574,39.5,146.21,146.17,5.4729]
[1723511344046,5.4701,146.25,146.21,5.4714]
[1723511344246,5.4717,146.21,146.17,13.6822]
[1723511344447,39.5,146.21,146.12,6.5334]
[1723511344676,39.5,146.21,146.14,13.6854]
[1723511344873,5.4727,146.18,146.14,5.4741]
[1723511345076,39.5,146.18,146.12,6.5334]
[1723511345383,5.4738,146.15,146.11,16.1759]
[1723511345558,39.5,146.18,146.11,21.6511]
[1723511345881,5.4731,146.17,146.12,5.4747]
[1723511346447,5.4742,146.14,146.1,5.4756]
[1723511346654,5.4742,146.14,146.08,20.2242]
[1723511347591,39.5,146.18,146.08,6.5334]
[1723511347883,39.5,146.18,146.16,5.4732]
[1723511348054,44.9716,146.21,146.16,5.4732]
[1723511348384,5.4727,146.18,146.13,5.4744]
[1723511348547,39.5,146.21,146.12,13.6869]
[1723511348750,44.9719,146.21,146.16,5.4734]
[1723511348951,5.4721,146.2,146.16,5.4733]
[1723511349173,5.4721,146.2,146.15,5.4737]
[1723511349382,5.4723,146.19,146.15,5.4737]
[1723511349595,39.5,146.21,146.16,13.6832]
[1723511349882,39.5,146.24,146.21,5.4715]
[1723511350081,39.5,146.24,146.22,5.471]
[1723511350284,39.5,146.24,146.16,6.3834]
[1723511350660,48.60496998,146.27,146.16,6.3834]
[1723511351059,5.4699,146.26,146.21,5.4715]
[1723511351459,5.4699,146.26,146.22,5.471]
[1723511351659,5.4686,146.29,146.22,13.6774]
[1723511351854,39.5,146.3,146.24,13.6754]
[1723511352053,5.4692,146.28,146.24,13.6754]
[1723511352451,39.5,146.3,146.24,13.6754]
[1723511352650,23.7086778,146.36,146.29,5.4685]
[1723511352856,5.4668,146.34,146.29,5.4685]
[1723511353096,30.00851972,146.36,146.25,19.9731]
[1723511353259,39.5,146.28,146.21,6.2982]
[1723511353467,1.70941457,146.27,146.22,13.6779]
[1723511353676,44.9701,146.25,146.2,5.4718]
[1723511353995,44.9689,146.28,146.24,5.4704]
[1723511354393,39.5,146.28,146.21,19.1498]
[1723511354593,36.3713,146.31,146.18,13.6813]
[1723511354594,5.4709,146.23,146.18,13.6813]
[1723511354789,39.5,146.25,146.18,13.6813]
[1723511354991,5.4696,146.27,146.22,5.471]
[1723511355190,45.0,146.29,146.23,5.4707]
[1723511355508,39.5,146.3,146.24,5.4704]
[1723511355665,39.5,146.3,146.23,5.4705]
[1723511355870,39.5,146.27,146.22,13.6771]
[1723511356084,39.5,146.27,146.24,5.4703]
[1723511356300,44.9685,146.3,146.25,5.4698]
[1723511356467,39.5,146.3,146.26,5.4696]
[1723511356810,5.4674,146.32,146.27,5.4693]
[1723511356979,39.5,146.33,146.28,5.4688]
[1723511357383,5.4675,146.32,146.26,13.6737]
[1723511357586,34.400652,146.36,146.28,13.6718]
[1723511357587,14.400652,146.36,146.28,13.6718]
[1723511357791,5.4666,146.35,146.3,5.468]
[1723511358005,5.4667,146.34,146.29,5.4685]
[1723511359213,0.8366778,146.36,146.3,13.6699]
[1723511359503,5.4667,146.34,146.3,13.6699]
[1723511359708,5.4664,146.35,146.3,19.138]
[1723511359871,6.3027778,146.36,146.32,5.4674]
[1723511360389,0.8366778,146.36,146.3,13.6699]
[1723511360571,0.8366778,146.36,146.33,5.467]
[1723511360907,0.8366778,146.36,146.35,5.4663]
[1723511361274,0.8366778,146.36,146.34,13.6662]
[1723511361474,0.8366778,146.36,146.32,5.4671]
[1723511361717,0.8366778,146.36,146.27,27.3463]
[1723511361881,0.8366778,146.36,146.29,5.4684]
[1723511361882,39.5,146.34,146.29,5.4684]
[1723511362213,39.5,146.34,146.29,13.6707]
[1723511362394,6.3026778,146.36,146.31,5.4675]
[1723511362601,0.8366778,146.36,146.32,5.4674]
[1723511363117,0.8366778,146.36,146.33,5.467]
[1723511363404,0.8366778,146.36,146.3,5.4679]
[1723511363607,5.4667,146.34,146.29,5.4683]
[1723511363908,5.4667,146.34,146.29,5.4685]
[1723511364109,0.8366778,146.36,146.3,13.6698]
[1723511364311,5.4663,146.35,146.3,19.138]
[1723511364612,5.4667,146.34,146.3,19.138]
[1723511364813,5.4667,146.34,146.3,13.6698]
[1723511364991,39.5,146.34,146.27,13.6733]
[1723511365674,0.8366778,146.36,146.3,13.6702]
[1723511365888,5.4663,146.35,146.3,13.6702]
[1723511366098,5.4664,146.35,146.3,19.1383]
[1723511367492,0.8366778,146.36,146.31,5.4678]
[1723511367493,6.3026778,146.36,146.31,5.4678]
[1723511368297,6.3026778,146.36,146.26,6.0289]
[1723511368298,0.8366778,146.36,146.33,5.4668]
[1723511368492,0.8366778,146.36,146.32,13.6679]
[1723511368693,0.8366778,146.36,146.35,5.4663]
[1723511369220,0.8366778,146.36,146.32,13.6679]
[1723511369418,0.8366778,146.36,146.29,13.671]
[1723511369419,5.4671,146.33,146.29,13.671]
[1723511369617,5.4676,146.32,146.27,5.469]
[1723511370096,39.5,146.34,146.3,5.4681]
[1723511370285,44.9667,146.34,146.29,5.4685]
[1723511370489,1.70865903,146.33,146.26,6.0289]
[1723511370690,5.4671,146.33,146.28,5.4689]
[1723511370889,39.5,146.34,146.3,5.4681]
[1723511371090,5.4671,146.33,146.29,19.1393]
[1723511371495,5.4671,146.33,146.29,13.6708]
[1723511371998,44.9668,146.34,146.29,19.1392]
[1723511372321,5.4666,146.35,146.29,13.6708]
[1723511372493,5.467,146.34,146.29,13.6708]
[1723511372815,5.467,146.34,146.29,19.1393]
[1723511372999,5.4664,146.35,146.3,5.468]
[1723511373420,5.4667,146.34,146.3,5.468]
[1723511373607,5.4667,146.34,146.29,19.1393]
[1723511374026,0.8366778,146.36,146.31,13.6688]
[1723511374320,0.8366778,146.36,146.33,5.467]
[1723511374627,6.3026778,146.36,146.32,5.4674]
[1723511374997,0.8366778,146.36,146.33,5.4669]
[1723511375498,0.8366778,146.36,146.34,5.4667]
[1723511375709,0.8366778,146.36,146.35,5.4663]
[1723511376396,0.8366778,146.36,146.34,5.4666]
[1723511376599,0.8366778,146.36,146.33,19.1338]
[1723511377800,0.8366778,146.36,146.34,5.4666]
[1723511378008,0.8366778,146.36,146.35,5.4663]
[1723511378817,0.8366778,146.36,146.34,5.4666]
[1723511379028,5.4664,146.35,146.31,5.4677]
[1723511379424,0.8366778,146.36,146.32,5.4674]
[1723511379903,0.8366778,146.36,146.33,5.467]
[1723511380304,0.8366778,146.36,146.34,5.4665]
[1723511380731,0.8366778,146.36,146.33,5.4669]
[1723511380922,0.8366778,146.36,146.32,13.6682]
[1723511381420,0.8366778,146.36,146.35,5.4663]
[1723511384496,0.8366778,146.36,146.35,32.92349]
[1723511384721,0.8366778,146.36,146.35,33.04898]
[1723511384943,0.8366778,146.36,146.35,33.29996]
[1723511385100,5.4627,146.45,146.4,13.6604]
[1723511385101,5.4626,146.45,146.4,13.6604]
[1723511385437,5.4626,146.45,146.36,0.12549]
[1723511385438,5.4633,146.43,146.39,5.4647]
[1723511385805,5.4633,146.43,146.38,5.4651]
[1723511386028,5.463,146.44,146.39,5.4648]
[1723511386905,5.463,146.44,146.4,5.4643]
[1723511387127,5.463,146.44,146.39,19.1263]
[1723511387410,5.4635,146.43,146.39,19.1263]
[1723511387817,39.5,146.46,146.39,13.6616]
[1723511388146,39.5,146.46,146.41,13.6596]
[1723511388510,39.5,146.46,146.42,5.4636]
[1723511388715,1.70719013,146.45,146.38,19.1275]
[1723511389027,39.5,146.43,146.35,13.6655]
[1723511389211,39.5,146.4,146.35,13.6655]
[1723511389631,44.9645,146.4,146.35,13.6655]
[1723511390017,39.5,146.4,146.35,13.6655]
[1723511390212,5.4638,146.42,146.37,5.4652]
[1723511391328,5.4638,146.42,146.38,5.4652]
[1723511391828,39.62549,146.44,146.37,13.6636]
[1723511392036,44.9642,146.41,146.37,13.6636]
[1723511392237,5.4633,146.43,146.38,5.4648]
[1723511392411,5.4633,146.43,146.39,5.4648]
[1723511392605,5.4637,146.42,146.38,5.4651]
[1723511393212,5.4637,146.42,146.37,13.6636]
[1723511393213,39.5,146.44,146.4,5.4644]
[1723511393438,5.4635,146.43,146.37,13.6636]
[1723511393634,39.5,146.44,146.37,19.1291]
[1723511393635,7.1712926,146.42,146.37,19.1291]
[1723511393936,5.4645,146.4,146.37,13.6636]
[1723511394312,39.5,146.44,146.37,19.1289]
[1723511394612,5.4633,146.43,146.37,13.6636]
[1723511394818,5.4633,146.43,146.38,5.4651]
[1723511395027,5.4638,146.42,146.38,5.4651]
[1723511395843,39.5,146.44,146.39,13.6617]
[1723511396018,1.70749983,146.43,146.39,19.1265]
[1723511396211,39.5,146.44,146.39,19.1265]
[1723511396415,39.5,146.44,146.42,13.6593]
[1723511396616,44.9618,146.47,146.43,5.4633]
[1723511396931,39.5,146.47,146.39,13.6615]
[1723511397311,1.70743333,146.46,146.39,13.6615]
[1723511397512,5.463,146.44,146.39,19.126]
[1723511397930,39.5,146.47,146.37,5.4654]
[1723511397931,31.41,146.43,146.37,5.4654]
[1723511398151,5.4638,146.42,146.37,5.4654]
[1723511398359,31.41,146.43,146.39,5.4648]
[1723511398633,31.41,146.43,146.35,0.12549]
[1723511398634,31.41,146.41,146.35,13.6652]
[1723511398851,7.17270676,146.4,146.35,19.1315]
[1723511399136,7.17270676,146.4,146.36,5.4658]
[1723511399337,31.41,146.41,146.37,13.6634]
[1723511399963,31.41,146.41,146.37,19.1287]
[1723511400459,36.8741,146.41,146.37,19.1287]
[1723511400672,31.41,146.39,146.34,13.6661]
[1723511400874,31.41,146.39,146.31,33.374]
[1723511400875,31.41,146.37,146.31,6.0356]
[1723511401176,31.41,146.37,146.28,16.4759]
[1723511401177,5.4668,146.34,146.29,5.4685]
[1723511401540,5.4668,146.34,146.28,30.1477]
[1723511401541,31.41,146.35,146.32,5.4673]
[1723511401773,45.0,146.36,146.32,5.4673]
[1723511401950,39.3,146.38,146.34,5.4664]
[1723511402159,39.3,146.41,146.28,43.8206]
[1723511402338,5.4637,146.42,146.38,5.465]
[1723511403051,44.7637,146.42,146.37,5.4655]
[1723511403253,39.3,146.4,146.33,13.6674]
[1723511403472,39.3,146.4,146.36,5.4659]
[1723511403651,39.3,146.42,146.39,5.4647]